[Event "Titled Tuesday Blitz February 07 Early 2023"]
[White "Basso, Pier Luigi"]
[Black "Morefield, Jason"]
[WhiteFideId "866970"]
[BlackFideId "30920825"]
[WhiteElo "2506"]
[BlackElo "2167"]
[Result "1-0"]
[Round "02"]
[TimeControl "180+2"]
[Date "2023.02.07"]
[WhiteClock "0:00:39"]
[BlackClock "0:00:14"]

1. d4 {[%clk 0:03:00]}  Nf6 {[%clk 0:02:59]} 2. c4 {[%clk 0:02:59]}  e6 {[%clk 0:02:59]} 3. Nf3 {[%clk 0:02:59]}  d5 {[%clk 0:02:59]} 4. Nc3 {[%clk 0:02:59]}  c6 {[%clk 0:02:58]} 5. Bg5 {[%clk 0:02:58]}  Nbd7 {[%clk 0:02:58]} 6. e3 {[%clk 0:02:58]}  Qa5 {[%clk 0:02:58]} 7. Nd2 {[%clk 0:02:57]}  Bb4 {[%clk 0:02:58]} 8. Qc2 {[%clk 0:02:57]}  dxc4 {[%clk 0:02:55]} 9. Bxf6 {[%clk 0:02:57]}  Nxf6 {[%clk 0:02:56]} 10. Nxc4 {[%clk 0:02:57]}  Qc7 {[%clk 0:02:56]} 11. a3 {[%clk 0:02:55]}  Bxc3+ {[%clk 0:02:51]} 12. Qxc3 {[%clk 0:02:56]}  c5 {[%clk 0:02:49]} 13. Rc1 {[%clk 0:02:54]}  cxd4 {[%clk 0:02:45]} 14. Qxd4 {[%clk 0:02:45]}  O-O {[%clk 0:02:44]} 15. Qd6 {[%clk 0:02:43]}  Qxd6 {[%clk 0:02:34]} 16. Nxd6 {[%clk 0:02:44]}  Bd7 {[%clk 0:02:29]} 17. Bb5 {[%clk 0:02:33]}  Bxb5 {[%clk 0:02:19]} 18. Nxb5 {[%clk 0:02:33]}  Rac8 {[%clk 0:02:02]} 19. Ke2 {[%clk 0:02:32]}  a6 {[%clk 0:01:58]} 20. Nd6 {[%clk 0:02:29]}  Rcd8 {[%clk 0:01:48]} 21. Rhd1 {[%clk 0:02:25]}  Nd5 {[%clk 0:01:42]} 22. Nxb7 {[%clk 0:02:21]}  Rb8 {[%clk 0:01:42]} 23. Nc5 {[%clk 0:02:20]}  Rxb2+ {[%clk 0:01:41]} 24. Rd2 {[%clk 0:02:21]}  Rb5 {[%clk 0:01:24]} 25. Nxa6 {[%clk 0:02:16]}  Ra5 {[%clk 0:01:25]} 26. Nb4 {[%clk 0:02:11]}  Rxa3 {[%clk 0:01:15]} 27. Nxd5 {[%clk 0:02:11]}  exd5 {[%clk 0:01:16]} 28. Rxd5 {[%clk 0:02:11]}  Ra2+ {[%clk 0:01:17]} 29. Rd2 {[%clk 0:02:11]}  Rxd2+ {[%clk 0:01:17]} 30. Kxd2 {[%clk 0:02:11]}  g6 {[%clk 0:01:18]} 31. g4 {[%clk 0:02:10]}  Kg7 {[%clk 0:01:18]} 32. Rc5 {[%clk 0:02:09]}  Ra8 {[%clk 0:01:18]} 33. Ke2 {[%clk 0:02:09]}  Ra2+ {[%clk 0:01:18]} 34. Kf3 {[%clk 0:02:09]}  Ra4 {[%clk 0:01:19]} 35. Kg3 {[%clk 0:02:08]}  Ra1 {[%clk 0:01:17]} 36. h4 {[%clk 0:02:08]}  Rg1+ {[%clk 0:01:17]} 37. Kf3 {[%clk 0:02:00]}  Rh1 {[%clk 0:01:18]} 38. h5 {[%clk 0:01:52]}  gxh5 {[%clk 0:01:10]} 39. Rxh5 {[%clk 0:01:50]}  Ra1 {[%clk 0:01:10]} 40. Kf4 {[%clk 0:01:47]}  h6 {[%clk 0:01:09]} 41. e4 {[%clk 0:01:45]}  Ra2 {[%clk 0:01:08]} 42. f3 {[%clk 0:01:46]}  Ra4 {[%clk 0:01:08]} 43. Rb5 {[%clk 0:01:45]}  Rc4 {[%clk 0:01:08]} 44. Rb6 {[%clk 0:01:45]}  Ra4 {[%clk 0:01:07]} 45. Kf5 {[%clk 0:01:45]}  Ra3 {[%clk 0:01:06]} 46. f4 {[%clk 0:01:45]}  Ra5+ {[%clk 0:01:06]} 47. e5 {[%clk 0:01:45]}  Ra7 {[%clk 0:01:05]} 48. g5 {[%clk 0:01:43]}  hxg5 {[%clk 0:01:05]} 49. Kxg5 {[%clk 0:01:43]}  Ra1 {[%clk 0:01:04]} 50. Rb7 {[%clk 0:01:44]}  Rg1+ {[%clk 0:01:03]} 51. Kf5 {[%clk 0:01:44]}  Re1 {[%clk 0:01:03]} 52. Re7 {[%clk 0:01:43]}  Ra1 {[%clk 0:00:49]} 53. Kg5 {[%clk 0:01:42]}  Rg1+ {[%clk 0:00:49]} 54. Kf5 {[%clk 0:01:42]}  Ra1 {[%clk 0:00:50]} 55. Rc7 {[%clk 0:01:32]}  Ra6 {[%clk 0:00:45]} 56. Rc1 {[%clk 0:01:30]}  Rg6 {[%clk 0:00:41]} 57. Re1 {[%clk 0:01:28]}  Rg2 {[%clk 0:00:38]} 58. Re3 {[%clk 0:01:23]}  Rg1 {[%clk 0:00:37]} 59. Rd3 {[%clk 0:01:22]}  Rg2 {[%clk 0:00:34]} 60. Rd7 {[%clk 0:01:22]}  Rg6 {[%clk 0:00:34]} 61. Ra7 {[%clk 0:01:19]}  Rb6 {[%clk 0:00:34]} 62. Ke4 {[%clk 0:01:17]}  Rb4+ {[%clk 0:00:35]} 63. Kf3 {[%clk 0:01:18]}  Rb5 {[%clk 0:00:34]} 64. Kg4 {[%clk 0:01:17]}  Rb6 {[%clk 0:00:34]} 65. Ra2 {[%clk 0:01:10]}  Rg6+ {[%clk 0:00:29]} 66. Kf3 {[%clk 0:01:10]}  Rb6 {[%clk 0:00:28]} 67. Rg2+ {[%clk 0:01:08]}  Kf8 {[%clk 0:00:28]} 68. Ke4 {[%clk 0:01:08]}  Ke7 {[%clk 0:00:27]} 69. Kf5 {[%clk 0:01:07]}  Ra6 {[%clk 0:00:26]} 70. Rb2 {[%clk 0:01:04]}  Rc6 {[%clk 0:00:26]} 71. Rb7+ {[%clk 0:01:01]}  Kf8 {[%clk 0:00:26]} 72. Rd7 {[%clk 0:01:00]}  Kg7 {[%clk 0:00:23]} 73. Rd6 {[%clk 0:01:01]}  Rc7 {[%clk 0:00:23]} 74. Kg5 {[%clk 0:01:00]}  Rc1 {[%clk 0:00:23]} 75. Rd3 {[%clk 0:00:59]}  Rg1+ {[%clk 0:00:23]} 76. Kf5 {[%clk 0:01:00]}  Rc1 {[%clk 0:00:23]} 77. Rg3+ {[%clk 0:00:59]}  Kf8 {[%clk 0:00:23]} 78. Kg5 {[%clk 0:00:58]}  Rc5 {[%clk 0:00:23]} 79. Re3 {[%clk 0:00:58]}  Kg7 {[%clk 0:00:22]} 80. Kf5 {[%clk 0:00:57]}  Ra5 {[%clk 0:00:22]} 81. Rg3+ {[%clk 0:00:56]}  Kf8 {[%clk 0:00:23]} 82. Ke4 {[%clk 0:00:54]}  Ra4+ {[%clk 0:00:23]} 83. Kf3 {[%clk 0:00:53]}  Ra5 {[%clk 0:00:23]} 84. Kg4 {[%clk 0:00:52]}  Ke7 {[%clk 0:00:22]} 85. Kf5 {[%clk 0:00:50]}  Ra6 {[%clk 0:00:22]} 86. Re3 {[%clk 0:00:48]}  Re6 {[%clk 0:00:22]} 87. Ke4 {[%clk 0:00:46]}  Rb6 {[%clk 0:00:22]} 88. Rd3 {[%clk 0:00:46]}  Rb4+ {[%clk 0:00:22]} 89. Rd4 {[%clk 0:00:47]}  Rb1 {[%clk 0:00:22]} 90. Ra4 {[%clk 0:00:46]}  Rb6 {[%clk 0:00:20]} 91. f5 {[%clk 0:00:44]}  Rc6 {[%clk 0:00:19]} 92. Ra7+ {[%clk 0:00:43]}  Kf8 {[%clk 0:00:20]} 93. f6 {[%clk 0:00:43]}  Kg8 {[%clk 0:00:13]} 94. Ra8+ {[%clk 0:00:42]}  Kh7 {[%clk 0:00:13]} 95. Rf8 {[%clk 0:00:42]}  Rc7 {[%clk 0:00:14]} 96. Kf5 {[%clk 0:00:41]}  Ra7 {[%clk 0:00:14]} 97. Re8 {[%clk 0:00:41]}  Rb7 {[%clk 0:00:14]} 98. Re7 {[%clk 0:00:41]}  Rb1 {[%clk 0:00:12]} 99. Rxf7+ {[%clk 0:00:42]}  Kg8 {[%clk 0:00:13]} 100. Rg7+ {[%clk 0:00:42]}  Kf8 {[%clk 0:00:13]} 101. Rg4 {[%clk 0:00:42]}  Rf1+ {[%clk 0:00:13]} 102. Kg6 {[%clk 0:00:42]}  Re1 {[%clk 0:00:13]} 103. Rb4 {[%clk 0:00:42]}  Rg1+ {[%clk 0:00:13]} 104. Kf5 {[%clk 0:00:42]}  Rf1+ {[%clk 0:00:14]} 105. Ke6 {[%clk 0:00:42]}  Kg8 {[%clk 0:00:15]} 106. Rb8+ {[%clk 0:00:39]}  Kh7 {[%clk 0:00:15]} 107. f7 {[%clk 0:00:40]}  Kg7 {[%clk 0:00:15]} 108. Rg8+ {[%clk 0:00:40]}  Kh7 {[%clk 0:00:14]} 109. f8=Q {[%clk 0:00:41]}  Rf6+ {[%clk 0:00:14]} 110. Qxf6 {[%clk 0:00:39]} 1-0


[Site "https://www.chess.com"]

[Event "Titled Tuesday Blitz February 07 Early 2023"]
[White "Devaev, Alexander"]
[Black "Lianes Garcia, Marcos"]
[WhiteFideId "4169395"]
[BlackFideId "32060777"]
[WhiteElo "2325"]
[BlackElo "2411"]
[Result "1-0"]
[Round "02"]
[TimeControl "180+2"]
[Date "2023.02.07"]
[WhiteClock "0:00:06"]
[BlackClock "0:00:26"]

1. d4 {[%clk 0:02:55]}  g6 {[%clk 0:02:30]} 2. c4 {[%clk 0:02:53]}  Bg7 {[%clk 0:02:30]} 3. e4 {[%clk 0:02:54]}  c5 {[%clk 0:02:30]} 4. d5 {[%clk 0:02:54]}  d6 {[%clk 0:02:30]} 5. h3 {[%clk 0:02:54]}  e5 {[%clk 0:02:30]} 6. Nc3 {[%clk 0:02:54]}  Ne7 {[%clk 0:02:30]} 7. Nf3 {[%clk 0:02:51]}  O-O {[%clk 0:02:30]} 8. g4 {[%clk 0:02:51]}  h6 {[%clk 0:02:30]} 9. Rg1 {[%clk 0:02:50]}  Na6 {[%clk 0:02:29]} 10. h4 {[%clk 0:02:47]}  Nc7 {[%clk 0:02:29]} 11. h5 {[%clk 0:02:48]}  g5 {[%clk 0:02:29]} 12. Be3 {[%clk 0:02:47]}  Bd7 {[%clk 0:02:29]} 13. Nd2 {[%clk 0:02:47]}  a6 {[%clk 0:02:29]} 14. a3 {[%clk 0:02:37]}  b5 {[%clk 0:02:28]} 15. b4 {[%clk 0:02:29]}  cxb4 {[%clk 0:02:27]} 16. axb4 {[%clk 0:02:29]}  bxc4 {[%clk 0:02:27]} 17. Bxc4 {[%clk 0:02:29]}  Nb5 {[%clk 0:02:26]} 18. Nxb5 {[%clk 0:02:22]}  axb5 {[%clk 0:02:17]} 19. Bd3 {[%clk 0:02:05]}  Qc7 {[%clk 0:02:14]} 20. Rc1 {[%clk 0:01:56]}  Qb7 {[%clk 0:02:12]} 21. f3 {[%clk 0:01:57]}  Ra4 {[%clk 0:02:09]} 22. Rb1 {[%clk 0:01:55]}  Rfa8 {[%clk 0:02:06]} 23. Kf2 {[%clk 0:01:43]}  Nc8 {[%clk 0:02:04]} 24. Qc2 {[%clk 0:01:31]}  Bf6 {[%clk 0:02:03]} 25. Nb3 {[%clk 0:01:20]}  Rxb4 {[%clk 0:01:54]} 26. Na5 {[%clk 0:01:19]}  Rxa5 {[%clk 0:01:48]} 27. Rxb4 {[%clk 0:01:20]}  Bd8 {[%clk 0:01:48]} 28. Rgb1 {[%clk 0:01:19]}  Na7 {[%clk 0:01:49]} 29. Bxa7 {[%clk 0:00:56]}  Qxa7+ {[%clk 0:01:49]} 30. Kg2 {[%clk 0:00:56]}  Qb6 {[%clk 0:01:39]} 31. Qe2 {[%clk 0:00:50]}  Ra3 {[%clk 0:01:29]} 32. Bxb5 {[%clk 0:00:49]}  Bxb5 {[%clk 0:01:20]} 33. Rxb5 {[%clk 0:00:47]}  Qa7 {[%clk 0:01:20]} 34. Rb8 {[%clk 0:00:43]}  Qa5 {[%clk 0:01:17]} 35. R1b2 {[%clk 0:00:33]}  Kg7 {[%clk 0:01:17]} 36. Qd2 {[%clk 0:00:23]}  Qxd2+ {[%clk 0:00:43]} 37. Rxd2 {[%clk 0:00:18]}  Ba5 {[%clk 0:00:44]} 38. Rc2 {[%clk 0:00:15]}  Ra4 {[%clk 0:00:41]} 39. Ra8 {[%clk 0:00:12]}  Ra3 {[%clk 0:00:38]} 40. Rb2 {[%clk 0:00:09]}  Kf6 {[%clk 0:00:36]} 41. Rb5 {[%clk 0:00:09]}  Ra2+ {[%clk 0:00:33]} 42. Kh3 {[%clk 0:00:09]}  Rf2 {[%clk 0:00:34]} 43. Rbxa5 {[%clk 0:00:09]}  Rxf3+ {[%clk 0:00:35]} 44. Kg2 {[%clk 0:00:10]}  Rf4 {[%clk 0:00:35]} 45. Ra4 {[%clk 0:00:08]}  Rxg4+ {[%clk 0:00:35]} 46. Kf3 {[%clk 0:00:08]}  Rf4+ {[%clk 0:00:35]} 47. Ke3 {[%clk 0:00:07]}  Rh4 {[%clk 0:00:35]} 48. Rd8 {[%clk 0:00:07]}  Ke7 {[%clk 0:00:32]} 49. Raa8 {[%clk 0:00:07]}  Rh3+ {[%clk 0:00:32]} 50. Kf2 {[%clk 0:00:07]}  Rxh5 {[%clk 0:00:33]} 51. Re8+ {[%clk 0:00:07]}  Kf6 {[%clk 0:00:34]} 52. Rad8 {[%clk 0:00:07]}  Rh4 {[%clk 0:00:33]} 53. Rxd6+ {[%clk 0:00:08]}  Kg7 {[%clk 0:00:33]} 54. Rxe5 {[%clk 0:00:08]}  Rf4+ {[%clk 0:00:31]} 55. Kg3 {[%clk 0:00:08]}  Rf1 {[%clk 0:00:31]} 56. Rd7 {[%clk 0:00:09]}  Kg6 {[%clk 0:00:29]} 57. Rf5 {[%clk 0:00:09]}  Rg1+ {[%clk 0:00:29]} 58. Kf2 {[%clk 0:00:08]}  Rg4 {[%clk 0:00:28]} 59. Rdxf7 {[%clk 0:00:07]}  Rxe4 {[%clk 0:00:28]} 60. R7f6+ {[%clk 0:00:08]}  Kh5 {[%clk 0:00:28]} 61. d6 {[%clk 0:00:09]}  Rd4 {[%clk 0:00:29]} 62. Rf3 {[%clk 0:00:09]}  Kg4 {[%clk 0:00:27]} 63. Rg3+ {[%clk 0:00:07]}  Kh5 {[%clk 0:00:27]} 64. Ke3 {[%clk 0:00:07]}  Rd1 {[%clk 0:00:26]} 65. Rh3+ {[%clk 0:00:07]}  Kg4 {[%clk 0:00:27]} 66. Rhxh6 {[%clk 0:00:07]}  Kg3 {[%clk 0:00:27]} 67. Ke2 {[%clk 0:00:08]}  Rd4 {[%clk 0:00:26]} 68. Rhg6 {[%clk 0:00:08]}  g4 {[%clk 0:00:27]} 69. Re6 {[%clk 0:00:08]}  Rd5 {[%clk 0:00:26]} 70. Re4 {[%clk 0:00:07]}  Kh3 {[%clk 0:00:25]} 71. Rexg4 {[%clk 0:00:07]}  Re5+ {[%clk 0:00:26]} 72. Kd3 {[%clk 0:00:07]}  Re1 {[%clk 0:00:26]} 73. Rg1 {[%clk 0:00:06]} 1-0


[Site "https://www.chess.com"]

[Event "Titled Tuesday Blitz February 07 Early 2023"]
[White "Szpar, Milosz"]
[Black "Abdilkhair, Abilmansur"]
[WhiteFideId "1184989"]
[BlackFideId "13716417"]
[WhiteElo "2447"]
[BlackElo "2268"]
[Result "1-0"]
[Round "02"]
[TimeControl "180+2"]
[Date "2023.02.07"]
[WhiteClock "0:00:16"]
[BlackClock "0:00:12"]

1. e4 {[%clk 0:02:48]}  e5 {[%clk 0:02:59]} 2. Nf3 {[%clk 0:02:48]}  Nc6 {[%clk 0:03:00]} 3. Bb5 {[%clk 0:02:46]}  a6 {[%clk 0:03:00]} 4. Ba4 {[%clk 0:02:46]}  Nf6 {[%clk 0:02:59]} 5. O-O {[%clk 0:02:46]}  b5 {[%clk 0:03:00]} 6. Bb3 {[%clk 0:02:46]}  Be7 {[%clk 0:03:00]} 7. d4 {[%clk 0:02:44]}  exd4 {[%clk 0:02:59]} 8. e5 {[%clk 0:02:42]}  Ne4 {[%clk 0:02:57]} 9. Nxd4 {[%clk 0:02:34]}  O-O {[%clk 0:02:49]} 10. Bd5 {[%clk 0:02:21]}  Nc5 {[%clk 0:02:34]} 11. Nxc6 {[%clk 0:02:02]}  dxc6 {[%clk 0:02:32]} 12. Bxc6 {[%clk 0:02:03]}  Qxd1 {[%clk 0:02:19]} 13. Rxd1 {[%clk 0:02:03]}  Bg4 {[%clk 0:02:19]} 14. f3 {[%clk 0:01:50]}  Rad8 {[%clk 0:02:19]} 15. Nc3 {[%clk 0:01:50]}  Rxd1+ {[%clk 0:01:59]} 16. Nxd1 {[%clk 0:01:50]}  Bf5 {[%clk 0:02:00]} 17. Ne3 {[%clk 0:01:50]}  Bg6 {[%clk 0:01:57]} 18. Nd5 {[%clk 0:01:43]}  Bd8 {[%clk 0:01:55]} 19. Be3 {[%clk 0:01:42]}  Ne6 {[%clk 0:01:52]} 20. c3 {[%clk 0:01:41]}  f6 {[%clk 0:01:18]} 21. exf6 {[%clk 0:01:39]}  gxf6 {[%clk 0:01:19]} 22. a4 {[%clk 0:01:38]}  Be8 {[%clk 0:01:13]} 23. axb5 {[%clk 0:01:30]}  axb5 {[%clk 0:01:13]} 24. Bxe8 {[%clk 0:01:30]}  Rxe8 {[%clk 0:01:13]} 25. Ra8 {[%clk 0:01:30]}  Kf7 {[%clk 0:01:09]} 26. Kf1 {[%clk 0:01:22]}  c6 {[%clk 0:01:08]} 27. Nb4 {[%clk 0:01:21]}  Nc7 {[%clk 0:01:05]} 28. Rc8 {[%clk 0:01:09]}  Rxe3 {[%clk 0:00:36]} 29. Rxd8 {[%clk 0:01:10]}  Ne6 {[%clk 0:00:27]} 30. Rd7+ {[%clk 0:01:01]}  Kg6 {[%clk 0:00:25]} 31. Nxc6 {[%clk 0:00:59]}  Nc5 {[%clk 0:00:25]} 32. Rd2 {[%clk 0:00:44]}  Nd3 {[%clk 0:00:17]} 33. Re2 {[%clk 0:00:44]}  Rxe2 {[%clk 0:00:14]} 34. Kxe2 {[%clk 0:00:44]}  Nxb2 {[%clk 0:00:15]} 35. Nd4 {[%clk 0:00:44]}  Na4 {[%clk 0:00:08]} 36. Nxb5 {[%clk 0:00:44]}  Kf5 {[%clk 0:00:09]} 37. Kd3 {[%clk 0:00:44]}  Ke5 {[%clk 0:00:09]} 38. c4 {[%clk 0:00:27]}  Nc5+ {[%clk 0:00:07]} 39. Ke3 {[%clk 0:00:25]}  h5 {[%clk 0:00:05]} 40. f4+ {[%clk 0:00:25]}  Kf5 {[%clk 0:00:04]} 41. Nd6+ {[%clk 0:00:25]}  Ke6 {[%clk 0:00:04]} 42. Ne4 {[%clk 0:00:25]}  Nb3 {[%clk 0:00:04]} 43. Kd3 {[%clk 0:00:23]}  Nc1+ {[%clk 0:00:03]} 44. Kd2 {[%clk 0:00:22]}  Nb3+ {[%clk 0:00:03]} 45. Kc3 {[%clk 0:00:22]}  Na5 {[%clk 0:00:04]} 46. c5 {[%clk 0:00:20]}  Nc6 {[%clk 0:00:04]} 47. Kc4 {[%clk 0:00:20]}  Kf5 {[%clk 0:00:05]} 48. Ng3+ {[%clk 0:00:14]}  Kxf4 {[%clk 0:00:05]} 49. Nxh5+ {[%clk 0:00:15]}  Kg5 {[%clk 0:00:05]} 50. Ng3 {[%clk 0:00:15]}  f5 {[%clk 0:00:05]} 51. Kd5 {[%clk 0:00:16]}  Nb4+ {[%clk 0:00:05]} 52. Kd6 {[%clk 0:00:15]}  f4 {[%clk 0:00:05]} 53. Ne2 {[%clk 0:00:14]}  Kf5 {[%clk 0:00:06]} 54. c6 {[%clk 0:00:14]}  Nxc6 {[%clk 0:00:05]} 55. Kxc6 {[%clk 0:00:15]}  Ke4 {[%clk 0:00:06]} 56. Kd6 {[%clk 0:00:14]}  f3 {[%clk 0:00:07]} 57. Ng3+ {[%clk 0:00:07]}  Kf4 {[%clk 0:00:04]} 58. gxf3 {[%clk 0:00:07]}  Kxf3 {[%clk 0:00:03]} 59. Ke5 {[%clk 0:00:08]}  Kg4 {[%clk 0:00:03]} 60. Ke4 {[%clk 0:00:07]}  Kh3 {[%clk 0:00:03]} 61. Nf1 {[%clk 0:00:07]}  Kg4 {[%clk 0:00:01]} 62. Ke3 {[%clk 0:00:08]}  Kh4 {[%clk 0:00:02]} 63. Kf3 {[%clk 0:00:08]}  Kh3 {[%clk 0:00:03]} 64. Kf2 {[%clk 0:00:08]}  Kh4 {[%clk 0:00:04]} 65. Kg2 {[%clk 0:00:09]}  Kg4 {[%clk 0:00:04]} 66. h3+ {[%clk 0:00:10]}  Kh4 {[%clk 0:00:05]} 67. Kh2 {[%clk 0:00:10]}  Kg5 {[%clk 0:00:06]} 68. Kg3 {[%clk 0:00:11]}  Kh5 {[%clk 0:00:07]} 69. h4 {[%clk 0:00:12]}  Kg6 {[%clk 0:00:07]} 70. Kg4 {[%clk 0:00:12]}  Kf6 {[%clk 0:00:07]} 71. h5 {[%clk 0:00:13]}  Kg7 {[%clk 0:00:07]} 72. Kg5 {[%clk 0:00:13]}  Kh7 {[%clk 0:00:08]} 73. h6 {[%clk 0:00:13]}  Kh8 {[%clk 0:00:08]} 74. Ng3 {[%clk 0:00:14]}  Kg8 {[%clk 0:00:09]} 75. Kg6 {[%clk 0:00:14]}  Kh8 {[%clk 0:00:10]} 76. Ne4 {[%clk 0:00:14]}  Kg8 {[%clk 0:00:11]} 77. Ng5 {[%clk 0:00:15]}  Kh8 {[%clk 0:00:11]} 78. Nf7+ {[%clk 0:00:15]}  Kg8 {[%clk 0:00:11]} 79. h7+ {[%clk 0:00:16]}  Kf8 {[%clk 0:00:12]} 80. h8=Q+ {[%clk 0:00:16]} 1-0


[Site "https://www.chess.com"]

[Event "Titled Tuesday Blitz February 07 Early 2023"]
[White "Forgacs, Attila Jr."]
[Black "Leiva, Gianmarco"]
[WhiteFideId "773654"]
[BlackFideId "3804399"]
[WhiteElo "2264"]
[BlackElo "2392"]
[Result "1-0"]
[Round "02"]
[TimeControl "180+2"]
[Date "2023.02.07"]
[WhiteClock "0:00:42"]
[BlackClock "0:00:15"]

1. e4 {[%clk 0:03:00]}  c6 {[%clk 0:03:00]} 2. d4 {[%clk 0:03:00]}  d5 {[%clk 0:03:01]} 3. Nd2 {[%clk 0:02:59]}  dxe4 {[%clk 0:03:01]} 4. Nxe4 {[%clk 0:03:00]}  Nf6 {[%clk 0:03:00]} 5. Nxf6+ {[%clk 0:03:01]}  exf6 {[%clk 0:03:01]} 6. c3 {[%clk 0:03:01]}  Bd6 {[%clk 0:03:00]} 7. Bd3 {[%clk 0:03:01]}  O-O {[%clk 0:03:00]} 8. Qc2 {[%clk 0:03:02]}  h5 {[%clk 0:02:53]} 9. Be3 {[%clk 0:02:56]}  Re8 {[%clk 0:02:53]} 10. O-O-O {[%clk 0:02:55]}  Be6 {[%clk 0:02:50]} 11. Kb1 {[%clk 0:02:55]}  b5 {[%clk 0:02:49]} 12. Ne2 {[%clk 0:02:54]}  Bd5 {[%clk 0:02:49]} 13. Rhg1 {[%clk 0:02:40]}  Qc7 {[%clk 0:02:42]} 14. g4 {[%clk 0:02:38]}  Bf3 {[%clk 0:01:07]} 15. gxh5 {[%clk 0:02:31]}  Bxh5 {[%clk 0:01:04]} 16. Bh6 {[%clk 0:01:57]}  g6 {[%clk 0:00:59]} 17. Bxg6 {[%clk 0:01:51]}  fxg6 {[%clk 0:00:59]} 18. Rxg6+ {[%clk 0:01:50]}  Bxg6 {[%clk 0:00:59]} 19. Qxg6+ {[%clk 0:01:50]}  Kh8 {[%clk 0:00:59]} 20. Qxe8+ {[%clk 0:01:28]}  Kh7 {[%clk 0:00:59]} 21. Qh5 {[%clk 0:01:10]}  Kh8 {[%clk 0:00:19]} 22. Rg1 {[%clk 0:00:42]}  Qh7+ {[%clk 0:00:18]} 23. Ka1 {[%clk 0:00:43]}  Nd7 {[%clk 0:00:15]} 24. Bg7+ {[%clk 0:00:42]} 1-0


[Site "https://www.chess.com"]

[Event "Titled Tuesday Blitz February 07 Early 2023"]
[White "Sputnik-11"]
[Black "Tan, Zhongyi"]
[BlackFideId "8603642"]
[WhiteElo "2381"]
[BlackElo "2517"]
[Result "0-1"]
[Round "02"]
[TimeControl "180+2"]
[Date "2023.02.07"]
[WhiteClock "0:00:08"]
[BlackClock "0:00:52"]

1. Nf3 {[%clk 0:03:00]}  c5 {[%clk 0:02:59]} 2. c4 {[%clk 0:02:57]}  Nf6 {[%clk 0:02:53]} 3. g3 {[%clk 0:02:56]}  g6 {[%clk 0:02:48]} 4. Bg2 {[%clk 0:02:56]}  Bg7 {[%clk 0:02:48]} 5. O-O {[%clk 0:02:56]}  d5 {[%clk 0:02:48]} 6. cxd5 {[%clk 0:02:54]}  Nxd5 {[%clk 0:02:49]} 7. Nc3 {[%clk 0:02:54]}  Nxc3 {[%clk 0:02:47]} 8. dxc3 {[%clk 0:02:51]}  O-O {[%clk 0:02:48]} 9. Qxd8 {[%clk 0:02:44]}  Rxd8 {[%clk 0:02:48]} 10. Bg5 {[%clk 0:02:45]}  Nc6 {[%clk 0:02:46]} 11. Rfd1 {[%clk 0:02:42]}  Be6 {[%clk 0:02:46]} 12. Nd2 {[%clk 0:02:12]}  f6 {[%clk 0:02:25]} 13. Be3 {[%clk 0:02:11]}  Rd7 {[%clk 0:01:55]} 14. Ne4 {[%clk 0:01:39]}  Rxd1+ {[%clk 0:01:50]} 15. Rxd1 {[%clk 0:01:40]}  Bxa2 {[%clk 0:01:34]} 16. Nxc5 {[%clk 0:01:38]}  Ne5 {[%clk 0:01:34]} 17. Nxb7 {[%clk 0:01:21]}  Ng4 {[%clk 0:01:26]} 18. Bc5 {[%clk 0:01:16]}  e5 {[%clk 0:01:22]} 19. Rd8+ {[%clk 0:01:01]}  Rxd8 {[%clk 0:01:21]} 20. Nxd8 {[%clk 0:01:02]}  a6 {[%clk 0:01:19]} 21. Bb7 {[%clk 0:00:48]}  Bc4 {[%clk 0:01:19]} 22. e3 {[%clk 0:00:43]}  f5 {[%clk 0:01:11]} 23. Nc6 {[%clk 0:00:37]}  e4 {[%clk 0:01:09]} 24. Nb4 {[%clk 0:00:35]}  a5 {[%clk 0:01:07]} 25. Bd5+ {[%clk 0:00:33]}  Bxd5 {[%clk 0:01:06]} 26. Nxd5 {[%clk 0:00:34]}  Ne5 {[%clk 0:01:04]} 27. Bd4 {[%clk 0:00:24]}  Nd3 {[%clk 0:00:55]} 28. Bxg7 {[%clk 0:00:20]}  Kxg7 {[%clk 0:00:56]} 29. b4 {[%clk 0:00:16]}  a4 {[%clk 0:00:54]} 30. c4 {[%clk 0:00:14]}  a3 {[%clk 0:00:53]} 31. Nc3 {[%clk 0:00:13]}  Nxb4 {[%clk 0:00:54]} 32. c5 {[%clk 0:00:10]}  Kf7 {[%clk 0:00:53]} 33. c6 {[%clk 0:00:09]}  Ke7 {[%clk 0:00:52]} 34. Kf1 {[%clk 0:00:09]}  a2 {[%clk 0:00:51]} 35. Nxa2 {[%clk 0:00:08]}  Nxa2 {[%clk 0:00:52]} 0-1


[Site "https://www.chess.com"]

[Event "Titled Tuesday Blitz February 07 Early 2023"]
[White "Avazkhonov, Alikhon"]
[Black "Md, Imran"]
[WhiteFideId "14208504"]
[BlackFideId "25748580"]
[WhiteElo "1538"]
[BlackElo "2284"]
[Result "1-0"]
[Round "02"]
[TimeControl "180+2"]
[Date "2023.02.07"]
[WhiteClock "0:00:02"]
[BlackClock "0:00:48"]

1. d4 {[%clk 0:03:00]}  Nf6 {[%clk 0:02:58]} 2. c4 {[%clk 0:03:01]}  e6 {[%clk 0:02:56]} 3. Nc3 {[%clk 0:03:01]}  Bb4 {[%clk 0:02:52]} 4. e3 {[%clk 0:03:01]}  O-O {[%clk 0:02:51]} 5. Bd2 {[%clk 0:03:02]}  c5 {[%clk 0:02:43]} 6. a3 {[%clk 0:02:57]}  Bxc3 {[%clk 0:02:40]} 7. Bxc3 {[%clk 0:02:58]}  cxd4 {[%clk 0:02:31]} 8. Qxd4 {[%clk 0:02:57]}  Nc6 {[%clk 0:02:29]} 9. Qh4 {[%clk 0:02:43]}  e5 {[%clk 0:02:27]} 10. Nf3 {[%clk 0:02:41]}  Re8 {[%clk 0:02:20]} 11. O-O-O {[%clk 0:02:34]}  d6 {[%clk 0:01:51]} 12. c5 {[%clk 0:02:08]}  d5 {[%clk 0:01:45]} 13. Bb5 {[%clk 0:02:08]}  Qc7 {[%clk 0:01:35]} 14. Nd2 {[%clk 0:00:36]}  Bf5 {[%clk 0:01:28]} 15. f3 {[%clk 0:00:33]}  a6 {[%clk 0:01:24]} 16. Ba4 {[%clk 0:00:30]}  Bd3 {[%clk 0:01:23]} 17. Nb3 {[%clk 0:00:25]}  Bb5 {[%clk 0:01:16]} 18. Bxb5 {[%clk 0:00:23]}  axb5 {[%clk 0:01:17]} 19. g4 {[%clk 0:00:22]}  b4 {[%clk 0:01:08]} 20. axb4 {[%clk 0:00:22]}  d4 {[%clk 0:01:08]} 21. exd4 {[%clk 0:00:13]}  Nd5 {[%clk 0:01:08]} 22. Kb1 {[%clk 0:00:06]}  exd4 {[%clk 0:01:00]} 23. Nxd4 {[%clk 0:00:05]}  Ncxb4 {[%clk 0:00:53]} 24. Nb3 {[%clk 0:00:02]}  Qc6 {[%clk 0:00:49]} 25. Qg5 {[%clk 0:00:02]}  Qa4 {[%clk 0:00:48]} 26. Qxg7# {[%clk 0:00:02]} 1-0


[Site "https://www.chess.com"]